[Event "Czech Open Rapid G1 2024"]
[Site "Pardubice"]
[Date "2024.07.18"]
[Round "5.14"]
[White "Sichrovsky, Tomas"]
[Black "Kuegel, Tobias"]
[Result "0-1"]
[Annotator "TA"]
[ECO "D41"]
[WhiteElo "1933"]
[BlackElo "2416"]
[PlyCount "90"]
[EventDate "2024.07.16"]
[EventType "swiss"]
[EventCountry "CZE"]
[SourceTitle "playchess.com"]
[Source "ChessBase"]
[SourceQuality "1"]
[TimeControl "1200+10"]

{[%evp 25,90,-9,22,18,17,4,35,12,38,0,12,0,0,0,0,0,0,0,0,0,10,0,7,0,0,0,0,0,11,0,0,0,0,-8,-8,-17,0,0,0,-6,0,-127,-37,-61,-22,-166,-165,-180,-162,-5357,-2264,-2475,-2506,-6087,-5600,-29967,-29967,-29984,-29985,-29985,-29986,-29986,-29987,-29988,-29989,-29987,-29988]} 1. d4 {[%emt 0:00:07]} d5 {[%emt 0:03:18]} 2. c4 {[%emt 0:00:05]} e6 {[%emt 0:00:01]} 3. Nc3 {[%emt 0:00:03]} Nf6 {[%emt 0:00:06]} 4. cxd5 {[%emt 0:00:02]} Nxd5 {[%emt 0:00:03]} 5. e4 {[%emt 0:00:06]} Nxc3 {[%emt 0:00:06]} 6. bxc3 {[%emt 0:00:02]} c5 {[%emt 0:00:01]} 7. Nf3 {[%emt 0:00:16]} cxd4 {[%emt 0:00:03]} 8. cxd4 {[%emt 0:00:02]} Bb4+ {[%emt 0:00:01]} 9. Bd2 {[%emt 0:00:04]} Bxd2+ {[%emt 0:00:02]} 10. Qxd2 {[%emt 0:00:02]} O-O {[%emt 0:00:02]} 11. Be2 {[%emt 0:00:27]} b6 {[%emt 0:00:47]} 12. O-O {[%emt 0:00:18]} Bb7 {[%emt 0:01:11]} 13. Qe3 {[%emt 0:00:17]} Nd7 {[%emt 0:00:08]} 14. Rfd1 {[%emt 0:00:39]} Nf6 {[%emt 0:00:30]} 15. Nd2 {[%emt 0:00:53]} Rc8 {[%emt 0:00:57]} 16. f3 {[%emt 0:01:14] White is slightly better.} Qe7 {[%emt 0:00:41]} 17. Rac1 {[%emt 0:01:39]} h6 {[%emt 0:01:27]} 18. Nc4 {[%emt 0:02:34]} Rfd8 {[%emt 0:02:34]} 19. Qb3 {[%emt 0:02:50]} Ba6 {[%emt 0:02:29]} 20. Bf1 {[%emt 0:02:29]} Bxc4 {[%emt 0:00:28]} 21. Rxc4 {[%emt 0:01:02]} Rxc4 {[%emt 0:00:57]} 22. Bxc4 {[%emt 0:01:17]} Qc7 {[%emt 0:00:35]} 23. Bb5 {[%emt 0:03:24]} Rc8 {[%emt 0:00:43]} 24. a4 {[%emt 0:01:42]} Kf8 {[%emt 0:01:55]} 25. Qb4+ {[%emt 0:00:14]} Qe7 {[%emt 0:00:06]} 26. Qb2 {[%emt 0:00:19]} Kg8 {[%emt 0:01:13]} 27. Rc1 {[%emt 0:00:42]} Rxc1+ {[%emt 0:01:06]} 28. Qxc1 $11 {[%emt 0:00:01][%mdl 4096] Endgame. KQB-KQN} Qb4 {[%emt 0:00:01]} 29. Qe3 {[%emt 0:00:36]} Kf8 {[%emt 0:01:11]} 30. h3 {[%emt 0:00:41]} a6 {[%emt 0:01:04]} 31. Bxa6 {[%emt 0:00:05]} Qxa4 {[%emt 0:00:02]} 32. Bd3 {[%emt 0:00:15]} Qa3 {[%emt 0:00:28]} 33. Kh1 {[%emt 0:00:18] [#]} (33. Qd2 $11) 33... b5 {[%emt 0:00:27] Black is more active.} (33... Qc3 $1 $17 34. Kg1 b5) 34. d5 $1 $15 {[%emt 0:00:32]} exd5 {[%emt 0:00:22]} 35. e5 {[%emt 0:00:10] Now White is beyond hope.} (35. exd5 $11 {and White has nothing to worry.} Nxd5 36. Qd4 Qc1+ 37. Kh2 Qc7+ 38. g3) 35... Nd7 $19 {[%emt 0:00:26] White must now prevent ...Nc5.} 36. e6 {[%emt 0:00:07]} Qa1+ {[%emt 0:00:20]} 37. Bb1 $2 {[%emt 0:00:29]} (37. Qg1 Qxg1+ 38. Kxg1) 37... Qxb1+ {[%emt 0:00:06]} 38. Kh2 {[%emt 0:00:01]} fxe6 {[%emt 0:00:14]} 39. Qxe6 {[%emt 0:00:10]} Nf6 {[%emt 0:00:01] [#] ( -> ...b4)} 40. Qd6+ {[%emt 0:00:12]} Kg8 {[%emt 0:00:04] Black mates.} 41. Qc6 {[%emt 0:00:12]} Kh7 {[%emt 0:00:08]} 42. h4 {[%emt 0:00:05]} b4 {[%emt 0:00:10]} 43. Qb5 {[%emt 0:00:06]} b3 {[%emt 0:00:05]} 44. g4 {[%emt 0:00:08]} Qc2+ {[%emt 0:00:12]} 45. Kg3 {[%emt 0:00:01]} b2 {[%emt 0:00:04] Weighted Error Value: White=0.65/Black=0.12 (very precise) .  Mistake:       	White=3     	Black=1      Inaccurate:     	White=1     	Black=3      OK:         	White=5     	Black=7      Best:        	White=1     	Black=1      Strong:       	White=1     	---} 0-1

[Event "Czech Open Rapid G1 2024"]
[Site "Pardubice"]
[Date "2024.07.18"]
[Round "5.15"]
[White "Rous, Dominik"]
[Black "Piesik, Piotr"]
[Result "0-1"]
[Annotator "TA"]
[ECO "A40"]
[WhiteElo "1719"]
[BlackElo "2415"]
[PlyCount "118"]
[EventDate "2024.07.16"]
[EventType "swiss"]
[EventCountry "CZE"]
[SourceTitle "playchess.com"]
[Source "ChessBase"]
[SourceQuality "1"]
[TimeControl "1200+10"]

{[%evp 9,118,0,16,12,27,9,33,15,28,-12,-8,-23,-20,-29,-16,-56,-57,-57,-53,-78,-54,-111,-62,-57,-45,-31,-29,-46,-40,-60,-52,-64,-60,-72,-59,-96,-85,-102,-117,-111,-99,-107,-108,-165,-156,-203,-193,-222,-215,-225,-175,-182,-170,-230,-185,-192,-174,-240,-214,-225,-215,-243,-239,-248,-223,-238,-226,-250,-235,-252,-252,-252,-252,-252,-252,-260,-223,-218,-211,-396,-460,-477,-459,-506,-470,-439,-172,-1004,-731,-1493,-1309,-1651,-1622,-2289,-1891,-29982,-29983,-29983,-29984,-29984,-29985,-29985,-29986,-29988,-29989,-29989,-29990,-29990,-29991,-29991,-29992]} 1. Nf3 {[%emt 0:01:14]} g6 {[%emt 0:00:01]} 2. d4 {[%emt 0:00:14]} Bg7 {[%emt 0:00:01]} 3. b3 {[%emt 0:00:44]} c5 {[%emt 0:00:43]} 4. e3 {[%emt 0:00:00]} Nc6 {[%emt 0:00:03]} 5. Bb2 {[%emt 0:00:23]} d6 {[%emt 0:00:45]} 6. Nbd2 {[%emt 0:01:16]} Nh6 {[%emt 0:00:08]} 7. Bb5 {[%emt 0:00:18]} Nf5 {[%emt 0:00:21]} 8. O-O {[%emt 0:00:27] White is slightly better.} O-O {[%emt 0:00:20][%cal Rc5d4]} 9. Bxc6 {[%emt 0:00:16]} bxc6 {[%emt 0:00:02]} 10. Qc1 {[%emt 0:01:28]} cxd4 {[%emt 0:00:12]} 11. Nxd4 {[%emt 0:00:10]} Nxd4 {[%emt 0:00:04]} 12. Bxd4 {[%emt 0:00:58]} e5 {[%emt 0:00:04]} 13. Bb2 {[%emt 0:00:20]} d5 {[%emt 0:00:09]} 14. Nf3 {[%emt 0:00:14]} Re8 {[%emt 0:00:12]} 15. h3 {[%emt 0:00:28]} (15. c4 $15) 15... a5 {[%emt 0:00:10]} (15... c5 $17 16. Nd2 Ba6) 16. c4 $15 {[%emt 0:00:04]} a4 {[%emt 0:00:29]} 17. Rd1 {[%emt 0:00:24]} Bb7 {[%emt 0:00:02]} 18. Rd2 {[%emt 0:03:01]} Qb6 {[%emt 0:00:16]} 19. Rb1 {[%emt 0:01:46]} axb3 {[%emt 0:02:56]} 20. axb3 {[%emt 0:00:30][%cal Ba2b3,Bb3b4,Bb4c5][%mdl 32]} f6 {[%emt 0:00:35] Black is more active.} (20... Qxb3 $2 21. Bxe5 Qxc4 22. Qxc4 dxc4 23. Bxg7 $18) 21. b4 {[%emt 0:00:49][%cal Ob4b5]} Red8 {[%emt 0:00:32]} (21... Qxb4 22. Bxe5 Qe7 (22... Qxc4 $2 23. Rc2 $18) 23. Bf4 $16) 22. cxd5 {[%emt 0:00:40] Black continues to play with concentration.} cxd5 {[%emt 0:00:03][%cal Og7h6]} (22... Qxb4 $2 23. dxc6 (23. Bxe5 Qe7 $18) 23... Rxd2 24. Nxd2 (24. cxb7 Qxb7 25. Qxd2 Rb8 $18) 24... Bxc6 25. Qxc6 $18) 23. Qc5 {[%emt 0:00:24]} Qxc5 {[%emt 0:01:58]} 24. bxc5 {[%emt 0:00:01][%cal Ob2e5]} Bc6 {[%emt 0:00:00]} 25. Bc3 {[%emt 0:00:47]} Bf8 {[%emt 0:00:11]} 26. Rb6 {[%emt 0:00:38]} (26. Ne1 $17) 26... Rdc8 $19 {[%emt 0:00:01]} (26... Bxc5 $2 {perishes.} 27. Rxc6 Be7 28. Rd1 $18) 27. Bb4 {[%emt 0:02:30]} (27. Rb1 $17) 27... Be7 {[%emt 0:00:13]} 28. Bc3 {[%emt 0:02:51]} Bxc5 {[%emt 0:00:06]} 29. Rb1 {[%emt 0:00:02]} Kf7 {[%emt 0:02:08]} 30. Rdb2 {[%emt 0:01:21]} Ke6 {[%emt 0:00:48]} 31. Rc2 {[%emt 0:00:34]} (31. Nd2 $142) 31... Ba4 {[%emt 0:01:35] A strong pair of Bishops.} 32. Ra2 {[%emt 0:00:20]} Bd6 {[%emt 0:00:41]} 33. Be1 {[%emt 0:00:15]} (33. Bb4 $142) 33... Bc6 {[%emt 0:00:25]} 34. Rxa8 {[%emt 0:00:07]} Rxa8 {[%emt 0:00:02]} 35. Rb6 {[%emt 0:00:01]} Kd7 {[%emt 0:00:05] Threatens to win with ...Ra1.} 36. Rb1 {[%emt 0:00:07]} g5 {[%emt 0:00:20]} 37. Rc1 {[%emt 0:00:17]} h5 {[%emt 0:00:15]} 38. Rb1 {[%emt 0:00:01]} h4 {[%emt 0:00:16]} 39. Rc1 {[%emt 0:00:13]} Bb5 {[%emt 0:00:18]} 40. Rb1 {[%emt 0:00:21]} Bc4 {[%emt 0:00:04]} 41. Bc3 {[%emt 0:00:04]} Ra3 {[%emt 0:00:36]} 42. Bb4 {[%emt 0:00:18]} Rb3 {[%emt 0:00:05]} 43. Rxb3 {[%emt 0:00:03]} Bxb3 {[%emt 0:00:01]} 44. Bxd6 {[%emt 0:00:02]} (44. Nd2 Bd1 45. Bxd6 Kxd6 46. Kf1) 44... Kxd6 {[%emt 0:00:01][%mdl 4096] Endgame. KB-KN} 45. Kf1 {[%emt 0:00:00]} Kc5 {[%emt 0:00:29]} 46. g3 {[%emt 0:00:06]} hxg3 {[%emt 0:00:09]} 47. fxg3 {[%emt 0:00:01]} Bc2 $2 {[%emt 0:00:32]} (47... Bd1 48. Nh2 Bh5) 48. Nd2 {[%emt 0:00:45]} (48. Ke1) 48... Kb4 {[%emt 0:00:36]} 49. Ke2 {[%emt 0:00:12]} Kc3 {[%emt 0:00:03]} 50. h4 {[%emt 0:00:03]} gxh4 {[%emt 0:00:01]} 51. gxh4 {[%emt 0:00:01]} Bg6 {[%emt 0:00:07] [#] ( -> ...Bh5+)} 52. Nf1 {[%emt 0:00:29]} Bd3+ {[%emt 0:00:58] Black mates.} 53. Ke1 {[%emt 0:00:10]} Bxf1 {[%emt 0:00:01]} 54. Kxf1 {[%emt 0:00:01] [#]} d4 $1 {[%emt 0:00:01]} 55. exd4 {[%emt 0:00:17]} exd4 {[%emt 0:00:02] KPP-KP} 56. h5 {[%emt 0:00:01]} d3 {[%emt 0:00:00]} 57. h6 {[%emt 0:00:01]} d2 {[%emt 0:00:01]} 58. Ke2 {[%emt 0:00:11]} Kc2 {[%emt 0:00:01]} 59. h7 {[%emt 0:00:02]} d1=Q+ {[%emt 0:00:03] Weighted Error Value: White=0.56/Black=0.13 (very precise) .  Mistake:       	White=7     	Black=2      Inaccurate:     	White=4     	---        OK:         	White=8     	Black=17     Best:        	---       	Black=2} (59... d1=R 60. h8=Q (60. h8=R Rd2+ 61. Kf3 Rd3+ 62. Kg2 Rd2+ 63. Kg3 Rd3+ 64. Kf4 Rd4+ 65. Kf5 Kc3 $11) 60... Rd2+ 61. Ke3 Rd3+ 62. Ke4 $18) 0-1

[Event "Czech Open Rapid G1 2024"]
[Site "Pardubice"]
[Date "2024.07.18"]
[Round "5.16"]
[White "Johansson, Linus"]
[Black "Novotny, Josef"]
[Result "1-0"]
[Annotator "TA"]
[ECO "C01"]
[WhiteElo "2451"]
[BlackElo "2033"]
[PlyCount "71"]
[EventDate "2024.07.16"]
[EventType "swiss"]
[EventCountry "CZE"]
[SourceTitle "playchess.com"]
[Source "ChessBase"]
[SourceQuality "1"]
[TimeControl "1200+10"]

{[%evp 9,71,52,42,5,56,48,68,37,84,40,114,48,141,124,135,133,161,131,146,125,205,202,207,172,168,146,164,179,181,144,174,111,125,105,106,54,83,67,116,94,144,130,130,84,202,187,220,125,113,110,128,127,184,191,302,312,356,364,389,352,984,960,29986,29987]} 1. e4 {[%emt 0:00:03]} e6 {[%emt 0:00:06]} 2. d4 {[%emt 0:00:05]} d6 {[%emt 0:00:04]} 3. Nc3 {[%emt 0:00:11]} h6 {[%emt 0:00:03]} 4. Be3 {[%emt 0:00:07]} Nf6 {[%emt 0:00:03]} 5. f3 {[%emt 0:00:10]} a6 {[%emt 0:00:02]} 6. Qd2 {[%emt 0:00:13]} Nc6 {[%emt 0:00:02]} (6... b5 $11) 7. O-O-O {[%emt 0:00:06]} b5 {[%emt 0:00:03][%cal Bb7b5,Bb5b4][%mdl 32]} 8. Kb1 {[%emt 0:00:02] White is slightly better.} Bd7 {[%emt 0:00:10]} (8... b4 $14 {should be considered.}) 9. g4 {[%emt 0:00:13]} d5 {[%emt 0:00:22]} (9... b4 $14) 10. e5 {[%emt 0:00:08]} (10. exd5 $1 $16 Nxd5 11. Nxd5 exd5 12. Bd3) 10... Nh7 {[%emt 0:00:04]} (10... Ng8 $1 $14) 11. h4 $16 {[%emt 0:00:05]} b4 {[%emt 0:00:33] [#]} 12. Nce2 {[%emt 0:00:09]} Na5 {[%emt 0:00:04]} 13. Ng3 {[%emt 0:00:38]} Bb5 {[%emt 0:00:24]} 14. f4 {[%emt 0:01:17]} Bxf1 {[%emt 0:00:35]} (14... c5 $16 15. f5 (15. dxc5 Bxf1 16. Rxf1 Nc4 $18) 15... Nc4 16. Bxc4 dxc4) 15. Rxf1 $18 {[%emt 0:00:02]} (15. Nxf1 c5 16. f5 (16. dxc5 Nc4 $16) 16... Nc4) 15... Nc4 {[%emt 0:00:03]} 16. Qf2 {[%emt 0:00:03]} Qd7 {[%emt 0:00:36]} 17. Bc1 {[%emt 0:00:16]} O-O-O {[%emt 0:00:30]} 18. Nf3 {[%emt 0:00:12]} Be7 {[%emt 0:00:04]} 19. Rd1 {[%emt 0:01:12]} Kb7 {[%emt 0:00:06]} 20. Rd3 {[%emt 0:00:03]} (20. Ne1 $18) 20... a5 {[%emt 0:00:07]} 21. b3 {[%emt 0:00:25]} Nb6 {[%emt 0:00:05]} 22. c3 {[%emt 0:00:37]} ({Better is} 22. f5 $16) 22... Rc8 {[%emt 0:00:09]} 23. cxb4 {[%emt 0:00:09]} axb4 {[%emt 0:00:10]} (23... Qb5 $14 24. Qe2 Bxb4) 24. Be3 {[%emt 0:00:01]} Qb5 {[%emt 0:00:16] [#]} (24... Ra8 $142) 25. Rd2 $1 $16 {[%emt 0:00:03]} Nd7 {[%emt 0:00:27]} 26. Qe2 {[%emt 0:00:42]} ({White should try} 26. f5) 26... Qb6 {[%emt 0:00:09]} (26... Qxe2 $16 27. Nxe2 (27. Rxe2 c5 $14) 27... c5) 27. Rc1 $18 {[%emt 0:00:24]} Nhf8 {[%emt 0:01:34]} 28. h5 {[%emt 0:00:26] Wards off Ng6} (28. Rdc2 $18) 28... Nb8 $16 {[%emt 0:00:35]} 29. f5 $36 {[%emt 0:00:28][%mdl 2048] Keeping Black busy. White has more active pieces.} Nfd7 {[%emt 0:00:22]} 30. g5 {[%emt 0:00:14]} hxg5 {[%emt 0:00:52]} (30... Nc6 $16 {was called for.}) 31. Bxg5 $18 {[%emt 0:00:12]} f6 {[%emt 0:01:12]} (31... Bf8 {was necessary.} 32. Nh4 c5) 32. exf6 {[%emt 0:00:31]} gxf6 {[%emt 0:00:06]} 33. Bf4 {[%emt 0:00:42]} ({Inferior is} 33. Qxe6 Qxe6 34. fxe6 fxg5 $11) ({But not} 33. fxe6 Nf8 $18) 33... Nf8 {[%emt 0:00:27]} 34. Rdc2 {[%emt 0:00:28]} ({Don't do} 34. h6 Qa6 35. Rdc2 Bd8 $18) 34... Na6 {[%emt 0:00:04] [#]} (34... c5 35. h6 Nbd7 36. fxe6 Nxe6) 35. Rc6 $1 {[%emt 0:00:11][%mdl 512]} Qa7 {[%emt 0:00:24]} (35... Qa5 36. fxe6) 36. Qb5+ {[%emt 0:00:04] Weighted Error Value: White=0.24 (precise) /Black=0.52.  Mistake:       	White=5     	Black=11     Inaccurate:     	White=2     	Black=2      OK:         	White=11    	Black=6} 1-0

[Event "Czech Open Rapid G1 2024"]
[Site "Pardubice"]
[Date "2024.07.18"]
[Round "5.17"]
[White "Ptacek, Lubos"]
[Black "Lalic, Bogdan"]
[Result "0-1"]
[Annotator "RC"]
[ECO "C55"]
[WhiteElo "2036"]
[BlackElo "2348"]
[PlyCount "62"]
[EventDate "2024.07.16"]
[EventType "swiss"]
[EventCountry "CZE"]
[SourceTitle "playchess.com"]
[Source "ChessBase"]
[SourceQuality "1"]
[TimeControl "1200+10"]

1. e4 {[%emt 0:00:02]} e5 {[%emt 0:05:40]} 2. Nf3 {[%emt 0:00:02]} Nc6 {[%emt 0:00:03]} 3. Bc4 {[%emt 0:00:03]} Nf6 {[%emt 0:00:02]} 4. d3 {[%emt 0:00:02]} h6 {[%emt 0:00:01]} 5. O-O {[%emt 0:00:09]} d6 {[%emt 0:00:01]} 6. c3 {[%emt 0:00:28]} g6 {[%emt 0:00:01]} 7. Re1 {[%emt 0:00:39]} Bg7 {[%emt 0:00:01]} 8. a4 {[%emt 0:00:07]} O-O {[%emt 0:00:02]} 9. h3 {[%emt 0:00:08]} d5 {[%emt 0:00:23]} 10. Bb5 {[%emt 0:03:03]} dxe4 {[%emt 0:00:19]} 11. Bxc6 {[%emt 0:00:05]} bxc6 {[%emt 0:01:14]} 12. Nxe5 {[%emt 0:00:17]} Qd5 {[%emt 0:00:11]} 13. f4 {[%emt 0:04:16]} Rd8 {[%emt 0:00:40]} 14. d4 {[%emt 0:00:16]} h5 {[%emt 0:00:04]} 15. Be3 {[%emt 0:01:16]} Ba6 {[%emt 0:01:24]} 16. Qc2 {[%emt 0:01:02]} Nd7 {[%emt 0:01:44]} 17. c4 {[%emt 0:03:40]} Qe6 {[%emt 0:00:03]} 18. b3 {[%emt 0:01:27]} Nf8 {[%emt 0:01:07]} 19. Bf2 {[%emt 0:01:59]} f6 {[%emt 0:00:18]} 20. Nf3 {[%emt 0:00:06]} exf3 {[%emt 0:00:41]} 21. Rxe6 {[%emt 0:00:07]} Nxe6 {[%emt 0:00:01]} 22. g3 {[%emt 0:01:41]} f5 {[%emt 0:00:08]} 23. Nc3 {[%emt 0:01:31]} Nxd4 {[%emt 0:00:11]} 24. Bxd4 {[%emt 0:00:19]} Bxd4+ {[%emt 0:00:02]} 25. Kf1 {[%emt 0:00:15]} Re8 {[%emt 0:00:26]} 26. Rd1 {[%emt 0:00:30]} Rad8 {[%emt 0:00:07]} 27. g4 {[%emt 0:00:24]} hxg4 {[%emt 0:00:19]} 28. hxg4 {[%emt 0:00:06]} Kg7 {[%emt 0:00:23]} 29. gxf5 {[%emt 0:00:28]} Rh8 {[%emt 0:00:02]} 30. Ke1 {[%emt 0:00:30]} Rh1+ {[%emt 0:01:10]} 31. Kd2 {[%emt 0:00:02]} Rh2+ {[%emt 0:00:02]} 0-1

[Event "Czech Open Rapid G1 2024"]
[Site "Pardubice"]
[Date "2024.07.18"]
[Round "5.18"]
[White "Shilon Rahav, Eliran"]
[Black "Mica, Marek"]
[Result "1-0"]
[Annotator "TA"]
[ECO "B23"]
[WhiteElo "2055"]
[BlackElo "2375"]
[PlyCount "59"]
[EventDate "2024.07.16"]
[EventType "swiss"]
[EventCountry "CZE"]
[SourceTitle "playchess.com"]
[Source "ChessBase"]
[SourceQuality "1"]
[TimeControl "1200+10"]

{[%evp 12,58,27,32,60,64,80,65,91,85,102,91,90,0,109,50,178,140,258,264,239,195,209,170,148,147,140,146,185,180,660,684,643,665,1199,1027,1414,1370,1487,1410,29991,29992,29992,29993,29997,29998,29998,29999,29999]} 1. e4 {[%emt 0:00:02]} c5 {[%emt 0:00:01]} 2. Nc3 {[%emt 0:00:02]} Nc6 {[%emt 0:00:01]} 3. Bb5 {[%emt 0:00:02]} g6 {[%emt 0:00:03]} 4. Bxc6 {[%emt 0:00:03]} dxc6 {[%emt 0:00:02]} 5. d3 {[%emt 0:00:19]} Bg7 {[%emt 0:00:09]} 6. Be3 {[%emt 0:00:37]} b6 {[%emt 0:00:01]} 7. Qd2 {[%emt 0:00:15]} h6 {[%emt 0:00:07]} 8. f4 {[%emt 0:00:14]} Nf6 {[%emt 0:00:03]} 9. Nf3 {[%emt 0:00:05] Wards off e5} a5 {[%emt 0:00:14] White is slightly better.} 10. O-O-O {[%emt 0:00:38]} Ba6 {[%emt 0:00:21]} 11. Rhe1 {[%emt 0:00:10]} Qc7 {[%emt 0:00:14]} 12. d4 {[%emt 0:00:31]} ({Better is} 12. Kb1 $16) 12... cxd4 {[%emt 0:00:55]} (12... O-O-O $1 $11 {keeps the balance.}) 13. Bxd4 {[%emt 0:00:13]} (13. Qxd4 $16 b5 14. e5) 13... O-O {[%emt 0:00:38] [#] This costs Black the game.} (13... O-O-O $1 $14) 14. e5 $1 $18 {[%emt 0:01:39][%cal Be4e5,Be5e6][%mdl 32]} Nd5 {[%emt 0:00:30] [#]} (14... Ng4 $16) 15. Nxd5 $1 {[%emt 0:00:34]} cxd5 {[%emt 0:00:01]} 16. e6 {[%emt 0:01:07]} f5 {[%emt 0:00:02]} 17. Ne5 {[%emt 0:02:49]} Bxe5 {[%emt 0:03:08]} 18. Bxe5 {[%emt 0:02:14]} Qc6 {[%emt 0:00:00] Black is weak on the dark squares} 19. Bc3 {[%emt 0:02:14][%cal Od2d4] Strongly threatening Qd4! White is more active.} Qc4 {[%emt 0:00:42]} 20. Qe3 {[%emt 0:02:09] Hoping for Qe5.} (20. Qxd5 Qxd5 21. Rxd5 Rfc8 $16) 20... Kh7 $2 {[%emt 0:01:26]} (20... Qc5 21. Qxc5 bxc5 22. Rxd5 a4) 21. Qe5 {[%emt 0:02:05]} ({Weaker is} 21. Qxb6 Qxf4+ 22. Kb1 Rfc8 $18 (22... Qxh2 $2 {too greedy.} 23. Rxd5 Qh4 24. g3 $18)) 21... Rg8 {[%emt 0:00:10] Prevents Qg7+.} 22. Rxd5 {[%emt 0:00:43] Rd7 is the strong threat.} Rae8 {[%emt 0:01:06]} 23. b3 {[%emt 0:00:55]} Qc6 {[%emt 0:00:47]} 24. Rd7 {[%emt 0:01:19]} h5 {[%emt 0:00:02][%cal Bh6h5,Bh5h4][%mdl 32]} 25. Qf6 {[%emt 0:00:41]} Qc5 {[%emt 0:00:01]} 26. Qf7+ {[%emt 0:00:31] White mates.} Kh6 {[%emt 0:00:01][%cal Bh7h6,Bh6h5,Bh5g4][%mdl 32] [#]} 27. Bf6 $1 {[%emt 0:00:05][%csl Gf4][%cal Rf6g5][%mdl 512]} h4 {[%emt 0:00:53]} (27... Qxc2+ 28. Kxc2) 28. Bg5+ {[%emt 0:00:01]} Kh5 {[%emt 0:00:04]} 29. Qh7+ {[%emt 0:00:01]} Kg4 {[%emt 0:00:01]} 30. Qxh4# {[%emt 0:00:01] Weighted Error Value: White=0.11 (very precise) /Black=0.95.  Mistake:       	White=2     	Black=4      Inaccurate:     	---       	Black=1      OK:         	White=6     	Black=3      Best:        	White=1     	---        Strong:       	White=1     	---} 1-0

[Event "Czech Open Rapid G1 2024"]
[Site "Pardubice"]
[Date "2024.07.18"]
[Round "5.19"]
[White "Krak, Tomas"]
[Black "Fishchuk, Vladyslav"]
[Result "0-1"]
[Annotator "RC"]
[ECO "A22"]
[WhiteElo "2229"]
[BlackElo "2234"]
[PlyCount "74"]
[EventDate "2024.07.16"]
[EventType "swiss"]
[EventCountry "CZE"]
[SourceTitle "playchess.com"]
[Source "ChessBase"]
[SourceQuality "1"]
[TimeControl "1200+10"]

1. c4 {[%emt 0:00:04]} e5 {[%emt 0:00:02]} 2. Nc3 {[%emt 0:00:02]} Nf6 {[%emt 0:00:02]} 3. Nf3 {[%emt 0:00:01]} e4 {[%emt 0:00:01]} 4. Ng5 {[%emt 0:00:02]} c6 {[%emt 0:00:03]} 5. d4 {[%emt 0:00:13]} d5 {[%emt 0:00:37]} 6. e3 {[%emt 0:00:13]} Bd6 {[%emt 0:01:16]} 7. Bd2 {[%emt 0:00:04]} O-O {[%emt 0:03:30]} 8. Nh3 {[%emt 0:02:11]} Na6 {[%emt 0:01:17]} 9. cxd5 {[%emt 0:00:46]} cxd5 {[%emt 0:00:02]} 10. Nf4 {[%emt 0:01:04]} Nc7 {[%emt 0:01:09]} 11. Qb3 {[%emt 0:00:37]} b5 {[%emt 0:00:55]} 12. Be2 {[%emt 0:02:02]} a6 {[%emt 0:00:49]} 13. h3 {[%emt 0:00:51]} g5 {[%emt 0:01:30]} 14. Nh5 {[%emt 0:00:27]} Nxh5 {[%emt 0:00:02]} 15. Bxh5 {[%emt 0:00:01]} Be6 {[%emt 0:00:06]} 16. Be2 {[%emt 0:02:00]} Qd7 {[%emt 0:00:35]} 17. h4 {[%emt 0:00:29]} h6 {[%emt 0:00:11]} 18. hxg5 {[%emt 0:01:04]} hxg5 {[%emt 0:00:02]} 19. O-O-O {[%emt 0:00:21]} Kg7 {[%emt 0:00:21]} 20. Rh5 {[%emt 0:00:07]} f6 {[%emt 0:00:09]} 21. Rdh1 {[%emt 0:00:02]} Rh8 {[%emt 0:00:02]} 22. Rxh8 {[%emt 0:00:44]} Rxh8 {[%emt 0:00:01]} 23. Rxh8 {[%emt 0:00:01]} Kxh8 {[%emt 0:00:01]} 24. f3 {[%emt 0:00:10]} f5 {[%emt 0:02:44]} 25. Qd1 {[%emt 0:00:56]} Qh7 {[%emt 0:00:20]} 26. Qg1 {[%emt 0:00:11]} Bg3 {[%emt 0:01:08]} 27. Be1 {[%emt 0:04:09]} Qh4 {[%emt 0:00:34]} 28. Bxg3 {[%emt 0:00:37]} Qxg3 {[%emt 0:00:01]} 29. Nd1 {[%emt 0:00:40]} Kg7 {[%emt 0:01:12]} 30. Qf2 {[%emt 0:00:20]} Qd6 {[%emt 0:00:23]} 31. f4 {[%emt 0:00:15]} g4 {[%emt 0:00:36]} 32. Qe1 {[%emt 0:00:32]} b4 {[%emt 0:00:14]} 33. Nf2 {[%emt 0:00:21]} Qe7 {[%emt 0:00:54]} 34. Qh1 {[%emt 0:00:14]} a5 {[%emt 0:01:11]} 35. Qh5 {[%emt 0:00:32]} Qf6 {[%emt 0:00:40]} 36. Nh1 {[%emt 0:01:00]} Bf7 {[%emt 0:00:01]} 37. Ng3 {[%emt 0:00:19]} Qc6+ {[%emt 0:00:08]} 0-1